[Event "Titled Tuesday Blitz March 07 Late 2023"]
[White "Needleman, Gaston"]
[Black "Molenda, Marcin"]
[WhiteFideId "113735"]
[BlackFideId "1173065"]
[WhiteElo "2354"]
[BlackElo "2286"]
[Result "0-1"]
[Round "08"]
[TimeControl "180+2"]
[Date "2023.03.07"]
[WhiteClock "0:00:36"]
[BlackClock "0:01:16"]

1. e4 {[%clk 0:02:58]}  c5 {[%clk 0:02:50]} 2. d4 {[%clk 0:02:56]}  cxd4 {[%clk 0:02:47]} 3. Nf3 {[%clk 0:02:57]}  Nc6 {[%clk 0:02:46]} 4. Nxd4 {[%clk 0:02:56]}  e5 {[%clk 0:02:45]} 5. Nb5 {[%clk 0:02:55]}  d6 {[%clk 0:02:37]} 6. N1c3 {[%clk 0:02:43]}  a6 {[%clk 0:02:37]} 7. Na3 {[%clk 0:02:43]}  Nf6 {[%clk 0:02:35]} 8. Bg5 {[%clk 0:02:40]}  Be7 {[%clk 0:02:35]} 9. Bxf6 {[%clk 0:02:33]}  Bxf6 {[%clk 0:02:35]} 10. Nc4 {[%clk 0:02:33]}  Nd4 {[%clk 0:02:31]} 11. Bd3 {[%clk 0:02:30]}  O-O {[%clk 0:02:31]} 12. Ne2 {[%clk 0:02:29]}  Nxe2 {[%clk 0:02:26]} 13. Qxe2 {[%clk 0:02:24]}  d5 {[%clk 0:02:22]} 14. exd5 {[%clk 0:02:14]}  Qxd5 {[%clk 0:02:23]} 15. O-O-O {[%clk 0:02:11]}  Qc5 {[%clk 0:02:21]} 16. h4 {[%clk 0:02:07]}  Be6 {[%clk 0:02:17]} 17. Kb1 {[%clk 0:01:54]}  Rac8 {[%clk 0:02:09]} 18. Ne3 {[%clk 0:01:52]}  e4 {[%clk 0:02:06]} 19. Bxe4 {[%clk 0:01:46]}  Qb4 {[%clk 0:02:06]} 20. c4 {[%clk 0:01:38]}  b5 {[%clk 0:01:55]} 21. a3 {[%clk 0:01:30]}  Qb3 {[%clk 0:01:40]} 22. Nd5 {[%clk 0:01:13]}  Bxd5 {[%clk 0:01:38]} 23. Bxd5 {[%clk 0:01:12]}  bxc4 {[%clk 0:01:34]} 24. Rh3 {[%clk 0:01:08]}  Qb5 {[%clk 0:01:32]} 25. g4 {[%clk 0:00:58]}  c3 {[%clk 0:01:24]} 26. Ka2 {[%clk 0:00:50]}  c2 {[%clk 0:01:21]} 27. Qxb5 {[%clk 0:00:38]}  cxd1=Q {[%clk 0:01:18]} 28. Qxa6 {[%clk 0:00:36]}  Qxd5+ {[%clk 0:01:16]} 0-1


[Site "https://www.chess.com"]

[Event "Titled Tuesday Blitz March 07 Late 2023"]
[White "Graif, William"]
[Black "Barash, Anton"]
[WhiteFideId "2609835"]
[BlackFideId "30935229"]
[WhiteElo "2205"]
[BlackElo "2317"]
[Result "1-0"]
[Round "08"]
[TimeControl "180+2"]
[Date "2023.03.07"]
[WhiteClock "0:00:26"]
[BlackClock "0:00:54"]

1. e4 {[%clk 0:02:54]}  e6 {[%clk 0:02:57]} 2. d4 {[%clk 0:02:53]}  d5 {[%clk 0:02:57]} 3. Be3 {[%clk 0:02:52]}  dxe4 {[%clk 0:02:51]} 4. f3 {[%clk 0:02:52]}  Nf6 {[%clk 0:02:41]} 5. Nd2 {[%clk 0:02:51]}  exf3 {[%clk 0:02:32]} 6. Ngxf3 {[%clk 0:02:50]}  Nd5 {[%clk 0:02:20]} 7. Bg5 {[%clk 0:02:33]}  Be7 {[%clk 0:02:20]} 8. Bxe7 {[%clk 0:02:32]}  Qxe7 {[%clk 0:02:21]} 9. Qe2 {[%clk 0:01:47]}  b6 {[%clk 0:02:11]} 10. c4 {[%clk 0:01:25]}  Nb4 {[%clk 0:02:08]} 11. Qe4 {[%clk 0:01:25]}  c6 {[%clk 0:02:03]} 12. a3 {[%clk 0:01:23]}  N4a6 {[%clk 0:02:03]} 13. Bd3 {[%clk 0:01:23]}  Bb7 {[%clk 0:02:01]} 14. Qg4 {[%clk 0:00:56]}  Nd7 {[%clk 0:01:47]} 15. O-O {[%clk 0:00:45]}  O-O-O {[%clk 0:01:38]} 16. b4 {[%clk 0:00:39]}  Nf6 {[%clk 0:01:37]} 17. Qg3 {[%clk 0:00:31]}  c5 {[%clk 0:01:24]} 18. bxc5 {[%clk 0:00:31]}  bxc5 {[%clk 0:01:23]} 19. Rab1 {[%clk 0:00:28]}  cxd4 {[%clk 0:01:20]} 20. c5 {[%clk 0:00:29]}  Rhg8 {[%clk 0:00:57]} 21. c6 {[%clk 0:00:29]}  Bxc6 {[%clk 0:00:56]} 22. Bxa6+ {[%clk 0:00:29]}  Kd7 {[%clk 0:00:54]} 23. Ne5+ {[%clk 0:00:26]} 1-0


[Site "https://www.chess.com"]

[Event "Titled Tuesday Blitz March 07 Late 2023"]
[White "Liu, Eric"]
[Black "Sarkar, Justin"]
[WhiteFideId "30960240"]
[BlackFideId "2010011"]
[WhiteElo "2094"]
[BlackElo "2189"]
[Result "1-0"]
[Round "08"]
[TimeControl "180+2"]
[Date "2023.03.07"]
[WhiteClock "0:01:16"]
[BlackClock "0:00:01"]

1. d4 {[%clk 0:03:00]}  Nf6 {[%clk 0:02:56]} 2. Nf3 {[%clk 0:02:58]}  d5 {[%clk 0:02:55]} 3. Bf4 {[%clk 0:02:58]}  Nh5 {[%clk 0:02:48]} 4. Bg5 {[%clk 0:02:56]}  h6 {[%clk 0:02:48]} 5. Bh4 {[%clk 0:02:55]}  g5 {[%clk 0:02:46]} 6. Bg3 {[%clk 0:02:55]}  Nxg3 {[%clk 0:02:40]} 7. hxg3 {[%clk 0:02:56]}  Bg7 {[%clk 0:02:40]} 8. e3 {[%clk 0:02:55]}  c5 {[%clk 0:02:26]} 9. c3 {[%clk 0:02:54]}  Qb6 {[%clk 0:02:18]} 10. Qb3 {[%clk 0:02:51]}  Nc6 {[%clk 0:02:11]} 11. Nbd2 {[%clk 0:02:48]}  Bf5 {[%clk 0:01:54]} 12. Be2 {[%clk 0:02:07]}  c4 {[%clk 0:01:42]} 13. Qxb6 {[%clk 0:01:57]}  axb6 {[%clk 0:01:42]} 14. O-O {[%clk 0:01:54]}  b5 {[%clk 0:01:40]} 15. a3 {[%clk 0:01:53]}  Bf6 {[%clk 0:01:28]} 16. Ne1 {[%clk 0:01:53]}  h5 {[%clk 0:01:18]} 17. f3 {[%clk 0:01:51]}  e5 {[%clk 0:00:59]} 18. e4 {[%clk 0:01:50]}  Be6 {[%clk 0:00:58]} 19. exd5 {[%clk 0:01:44]}  Bxd5 {[%clk 0:00:58]} 20. Ne4 {[%clk 0:01:44]}  Be7 {[%clk 0:00:38]} 21. dxe5 {[%clk 0:01:34]}  Bxe4 {[%clk 0:00:37]} 22. fxe4 {[%clk 0:01:33]}  Nxe5 {[%clk 0:00:37]} 23. Rf5 {[%clk 0:01:31]}  f6 {[%clk 0:00:29]} 24. Nf3 {[%clk 0:01:28]}  Bd6 {[%clk 0:00:04]} 25. Nd4 {[%clk 0:01:27]}  Ke7 {[%clk 0:00:02]} 26. Nxb5 {[%clk 0:01:27]}  Bc5+ {[%clk 0:00:03]} 27. Kf1 {[%clk 0:01:20]}  Rac8 {[%clk 0:00:03]} 28. Nd4 {[%clk 0:01:17]}  Ng4 {[%clk 0:00:02]} 29. Bxg4 {[%clk 0:01:17]}  hxg4 {[%clk 0:00:02]} 30. Ke2 {[%clk 0:01:17]}  Rh2 {[%clk 0:00:01]} 31. Rg1 {[%clk 0:01:15]}  Bd6 {[%clk 0:00:01]} 32. Rd5 {[%clk 0:01:15]}  Bxg3 {[%clk 0:00:01]} 33. Nf5+ {[%clk 0:01:16]}  Ke6 {[%clk 0:00:01]} 34. Nxg3 {[%clk 0:01:16]} 1-0


[Site "https://www.chess.com"]

[Event "Titled Tuesday Blitz March 07 Late 2023"]
[White "Becerra, Juan David"]
[Black "Vargas Rodriguez, Wilver"]
[WhiteFideId "4404998"]
[BlackFideId "3509672"]
[WhiteElo "2282"]
[BlackElo "2238"]
[Result "1-0"]
[Round "08"]
[TimeControl "180+2"]
[Date "2023.03.07"]
[WhiteClock "0:01:09"]
[BlackClock "0:00:02"]

1. e4 {[%clk 0:03:00]}  c5 {[%clk 0:02:58]} 2. d4 {[%clk 0:03:00]}  cxd4 {[%clk 0:02:55]} 3. c3 {[%clk 0:03:00]}  Nf6 {[%clk 0:02:55]} 4. e5 {[%clk 0:03:00]}  Nd5 {[%clk 0:02:54]} 5. cxd4 {[%clk 0:03:01]}  Nc6 {[%clk 0:02:48]} 6. Nc3 {[%clk 0:03:00]}  Nb6 {[%clk 0:02:40]} 7. f4 {[%clk 0:02:59]}  d5 {[%clk 0:02:38]} 8. Nf3 {[%clk 0:02:57]}  Bg4 {[%clk 0:02:37]} 9. Be2 {[%clk 0:02:56]}  e6 {[%clk 0:02:34]} 10. O-O {[%clk 0:02:55]}  Be7 {[%clk 0:02:33]} 11. h3 {[%clk 0:02:47]}  Bxf3 {[%clk 0:02:32]} 12. Bxf3 {[%clk 0:02:46]}  Rc8 {[%clk 0:02:11]} 13. Kh1 {[%clk 0:02:45]}  Qd7 {[%clk 0:02:02]} 14. Ne2 {[%clk 0:02:44]}  Nb4 {[%clk 0:02:00]} 15. Bd2 {[%clk 0:02:40]}  Qa4 {[%clk 0:01:55]} 16. a3 {[%clk 0:02:25]}  Nc2 {[%clk 0:00:58]} 17. Rc1 {[%clk 0:02:17]}  O-O {[%clk 0:00:51]} 18. Nc3 {[%clk 0:02:14]}  Rxc3 {[%clk 0:00:43]} 19. Bxc3 {[%clk 0:02:13]}  Ne3 {[%clk 0:00:43]} 20. Qxa4 {[%clk 0:02:13]}  Nxa4 {[%clk 0:00:44]} 21. Rfe1 {[%clk 0:02:09]}  Nf5 {[%clk 0:00:20]} 22. g4 {[%clk 0:02:09]}  Nh6 {[%clk 0:00:20]} 23. Bd1 {[%clk 0:02:06]}  Nb6 {[%clk 0:00:19]} 24. Bb3 {[%clk 0:01:50]}  g6 {[%clk 0:00:13]} 25. Bd2 {[%clk 0:01:49]}  Kg7 {[%clk 0:00:10]} 26. Rc7 {[%clk 0:01:45]}  Bh4 {[%clk 0:00:07]} 27. Rec1 {[%clk 0:01:44]}  Rb8 {[%clk 0:00:05]} 28. Bb4 {[%clk 0:01:34]}  Bf2 {[%clk 0:00:05]} 29. Bc5 {[%clk 0:01:15]}  Be3 {[%clk 0:00:05]} 30. Rf1 {[%clk 0:01:15]}  g5 {[%clk 0:00:02]} 31. f5 {[%clk 0:01:09]} 1-0


[Site "https://www.chess.com"]

[Event "Titled Tuesday Blitz March 07 Late 2023"]
[White "Kraus, Tomas"]
[Black "Ardila, Oscar Humberto"]
[WhiteFideId "331708"]
[BlackFideId "4404742"]
[WhiteElo "2389"]
[BlackElo "1911"]
[Result "0-1"]
[Round "08"]
[TimeControl "180+2"]
[Date "2023.03.07"]
[WhiteClock "0:00:01"]
[BlackClock "0:00:14"]

1. e4 {[%clk 0:03:00]}  e5 {[%clk 0:02:59]} 2. Nf3 {[%clk 0:03:00]}  Nf6 {[%clk 0:02:59]} 3. Nc3 {[%clk 0:03:00]}  Nc6 {[%clk 0:02:59]} 4. d4 {[%clk 0:03:01]}  exd4 {[%clk 0:02:59]} 5. Nxd4 {[%clk 0:03:01]}  Bb4 {[%clk 0:02:58]} 6. Nxc6 {[%clk 0:03:01]}  bxc6 {[%clk 0:02:59]} 7. Bd3 {[%clk 0:03:02]}  d5 {[%clk 0:02:59]} 8. exd5 {[%clk 0:03:02]}  cxd5 {[%clk 0:02:59]} 9. O-O {[%clk 0:03:01]}  O-O {[%clk 0:02:59]} 10. Bg5 {[%clk 0:03:01]}  c6 {[%clk 0:02:59]} 11. Qf3 {[%clk 0:03:01]}  Bd6 {[%clk 0:02:59]} 12. Rae1 {[%clk 0:02:59]}  h6 {[%clk 0:02:58]} 13. Bxf6 {[%clk 0:02:59]}  Qxf6 {[%clk 0:02:58]} 14. Qxf6 {[%clk 0:02:59]}  gxf6 {[%clk 0:02:59]} 15. Ne2 {[%clk 0:02:58]}  Rb8 {[%clk 0:02:57]} 16. b3 {[%clk 0:02:57]}  Be5 {[%clk 0:02:55]} 17. f4 {[%clk 0:02:50]}  Bc7 {[%clk 0:02:49]} 18. Ng3 {[%clk 0:02:46]}  Bb6+ {[%clk 0:02:47]} 19. Kh1 {[%clk 0:02:46]}  Bg4 {[%clk 0:02:46]} 20. h3 {[%clk 0:02:41]}  Bd7 {[%clk 0:02:44]} 21. Nh5 {[%clk 0:02:40]}  Bd4 {[%clk 0:02:35]} 22. Re7 {[%clk 0:02:35]}  Rbd8 {[%clk 0:02:34]} 23. Rf3 {[%clk 0:02:17]}  Kh8 {[%clk 0:01:56]} 24. c3 {[%clk 0:01:39]}  Bxc3 {[%clk 0:01:29]} 25. Rxd7 {[%clk 0:01:38]}  Rxd7 {[%clk 0:01:26]} 26. Bf5 {[%clk 0:01:37]}  Rd6 {[%clk 0:01:12]} 27. Rxc3 {[%clk 0:01:35]}  d4 {[%clk 0:01:12]} 28. Rd3 {[%clk 0:01:29]}  c5 {[%clk 0:01:12]} 29. Ng3 {[%clk 0:01:19]}  Re8 {[%clk 0:01:10]} 30. Be4 {[%clk 0:00:46]}  Ra6 {[%clk 0:01:07]} 31. a4 {[%clk 0:00:45]}  Rb6 {[%clk 0:01:06]} 32. Kg1 {[%clk 0:00:44]}  Reb8 {[%clk 0:01:04]} 33. Bd5 {[%clk 0:00:43]}  Re8 {[%clk 0:00:51]} 34. Ne4 {[%clk 0:00:42]}  Kg7 {[%clk 0:00:49]} 35. Nxc5 {[%clk 0:00:39]}  Re1+ {[%clk 0:00:48]} 36. Kf2 {[%clk 0:00:39]}  Rc1 {[%clk 0:00:45]} 37. Bc4 {[%clk 0:00:37]}  Rd6 {[%clk 0:00:45]} 38. Ne4 {[%clk 0:00:35]}  Rd8 {[%clk 0:00:44]} 39. Nd2 {[%clk 0:00:34]}  f5 {[%clk 0:00:40]} 40. Nf3 {[%clk 0:00:34]}  Kf6 {[%clk 0:00:37]} 41. Rxd4 {[%clk 0:00:32]}  Rxd4 {[%clk 0:00:36]} 42. Nxd4 {[%clk 0:00:32]}  Rd1 {[%clk 0:00:36]} 43. Nb5 {[%clk 0:00:29]}  Rd2+ {[%clk 0:00:36]} 44. Kf3 {[%clk 0:00:28]}  a6 {[%clk 0:00:35]} 45. Nc7 {[%clk 0:00:26]}  a5 {[%clk 0:00:35]} 46. Nb5 {[%clk 0:00:24]}  h5 {[%clk 0:00:34]} 47. Nc3 {[%clk 0:00:18]}  h4 {[%clk 0:00:32]} 48. Ne2 {[%clk 0:00:16]}  Rc2 {[%clk 0:00:30]} 49. Ke3 {[%clk 0:00:15]}  Rb2 {[%clk 0:00:28]} 50. Kd3 {[%clk 0:00:15]}  Ra2 {[%clk 0:00:28]} 51. Bd5 {[%clk 0:00:14]}  Rb2 {[%clk 0:00:27]} 52. Nc3 {[%clk 0:00:13]}  Rf2 {[%clk 0:00:27]} 53. Bf3 {[%clk 0:00:12]}  Ke6 {[%clk 0:00:24]} 54. Kc4 {[%clk 0:00:10]}  Kd6 {[%clk 0:00:24]} 55. Kb5 {[%clk 0:00:10]}  Rc2 {[%clk 0:00:24]} 56. Nd5 {[%clk 0:00:09]}  Rc5+ {[%clk 0:00:23]} 57. Kb6 {[%clk 0:00:08]}  f6 {[%clk 0:00:22]} 58. Nxf6 {[%clk 0:00:07]}  Rc3 {[%clk 0:00:22]} 59. Kxa5 {[%clk 0:00:07]}  Rxb3 {[%clk 0:00:22]} 60. Ne8+ {[%clk 0:00:07]}  Kd7 {[%clk 0:00:20]} 61. Ng7 {[%clk 0:00:06]}  Kd6 {[%clk 0:00:20]} 62. Nxf5+ {[%clk 0:00:06]}  Kc5 {[%clk 0:00:21]} 63. Nxh4 {[%clk 0:00:06]}  Rb8 {[%clk 0:00:19]} 64. Nf5 {[%clk 0:00:05]}  Rf8 {[%clk 0:00:18]} 65. Ne3 {[%clk 0:00:04]}  Rf7 {[%clk 0:00:18]} 66. Ka6 {[%clk 0:00:03]}  Rxf4 {[%clk 0:00:15]} 67. a5 {[%clk 0:00:03]}  Rb4 {[%clk 0:00:15]} 68. Ka7 {[%clk 0:00:02]}  Rf4 {[%clk 0:00:14]} 69. a6 {[%clk 0:00:02]}  Rf7+ {[%clk 0:00:15]} 70. Bb7 {[%clk 0:00:01]}  Kb5 {[%clk 0:00:14]} 0-1


[Site "https://www.chess.com"]

[Event "Titled Tuesday Blitz March 07 Late 2023"]
[White "Ferriz Barrios, Andres"]
[Black "Kielinkei"]
[WhiteFideId "5104467"]
[WhiteElo "2249"]
[BlackElo "2385"]
[Result "0-1"]
[Round "08"]
[TimeControl "180+2"]
[Date "2023.03.07"]
[WhiteClock "0:01:00"]
[BlackClock "0:00:23"]

1. d4 {[%clk 0:03:00]}  Nf6 {[%clk 0:02:57]} 2. Nf3 {[%clk 0:03:01]}  b6 {[%clk 0:02:55]} 3. Nbd2 {[%clk 0:03:02]}  Bb7 {[%clk 0:02:55]} 4. e3 {[%clk 0:03:03]}  c5 {[%clk 0:02:47]} 5. c3 {[%clk 0:03:02]}  e6 {[%clk 0:02:43]} 6. Bd3 {[%clk 0:03:02]}  Be7 {[%clk 0:02:41]} 7. O-O {[%clk 0:03:02]}  O-O {[%clk 0:02:41]} 8. Re1 {[%clk 0:03:01]}  d5 {[%clk 0:02:39]} 9. Qe2 {[%clk 0:03:00]}  Nc6 {[%clk 0:02:37]} 10. dxc5 {[%clk 0:02:59]}  bxc5 {[%clk 0:02:37]} 11. e4 {[%clk 0:03:00]}  Qc7 {[%clk 0:02:31]} 12. e5 {[%clk 0:03:00]}  Nd7 {[%clk 0:02:30]} 13. Nf1 {[%clk 0:03:00]}  Rae8 {[%clk 0:02:20]} 14. Bb1 {[%clk 0:02:58]}  f6 {[%clk 0:02:11]} 15. exf6 {[%clk 0:02:56]}  Bxf6 {[%clk 0:02:09]} 16. Qc2 {[%clk 0:02:52]}  g6 {[%clk 0:02:09]} 17. Ng3 {[%clk 0:02:50]}  e5 {[%clk 0:02:04]} 18. Bh6 {[%clk 0:02:49]}  Rf7 {[%clk 0:02:01]} 19. Ng5 {[%clk 0:02:48]}  Bxg5 {[%clk 0:01:55]} 20. Bxg5 {[%clk 0:02:48]}  e4 {[%clk 0:01:52]} 21. a3 {[%clk 0:02:44]}  Nce5 {[%clk 0:01:44]} 22. Ba2 {[%clk 0:02:40]}  Nd3 {[%clk 0:01:24]} 23. Re2 {[%clk 0:02:31]}  c4 {[%clk 0:01:18]} 24. b3 {[%clk 0:02:25]}  N7e5 {[%clk 0:01:01]} 25. Be3 {[%clk 0:02:18]}  Ng4 {[%clk 0:00:52]} 26. Bd4 {[%clk 0:02:16]}  Ref8 {[%clk 0:00:47]} 27. Rf1 {[%clk 0:02:13]}  Ba6 {[%clk 0:00:42]} 28. bxc4 {[%clk 0:02:11]}  Bxc4 {[%clk 0:00:40]} 29. Bxc4 {[%clk 0:01:48]}  Qxc4 {[%clk 0:00:41]} 30. h3 {[%clk 0:01:43]}  Nge5 {[%clk 0:00:39]} 31. Qa2 {[%clk 0:01:32]}  Qxa2 {[%clk 0:00:32]} 32. Rxa2 {[%clk 0:01:33]}  Nc4 {[%clk 0:00:32]} 33. Re2 {[%clk 0:01:26]}  Rb7 {[%clk 0:00:29]} 34. f3 {[%clk 0:01:23]}  exf3 {[%clk 0:00:25]} 35. gxf3 {[%clk 0:01:23]}  Nf4 {[%clk 0:00:24]} 36. Rh2 {[%clk 0:01:13]}  Nxa3 {[%clk 0:00:22]} 37. Ra1 {[%clk 0:01:05]}  Nc4 {[%clk 0:00:22]} 38. Rxa7 {[%clk 0:00:59]}  Rxa7 {[%clk 0:00:22]} 39. Bxa7 {[%clk 0:00:58]}  Ra8 {[%clk 0:00:23]} 40. Bd4 {[%clk 0:00:59]}  Ra1+ {[%clk 0:00:22]} 41. Nf1 {[%clk 0:00:58]}  Nxh3+ {[%clk 0:00:17]} 42. Rxh3 {[%clk 0:00:58]}  Nd2 {[%clk 0:00:17]} 43. Kg2 {[%clk 0:00:56]}  Rxf1 {[%clk 0:00:13]} 44. Be3 {[%clk 0:00:53]}  Rd1 {[%clk 0:00:14]} 45. Rh1 {[%clk 0:00:50]}  Rxh1 {[%clk 0:00:12]} 46. Kxh1 {[%clk 0:00:51]}  Nxf3 {[%clk 0:00:13]} 47. Bf4 {[%clk 0:00:51]}  Kf7 {[%clk 0:00:12]} 48. Kg2 {[%clk 0:00:51]}  Ne1+ {[%clk 0:00:12]} 49. Kf1 {[%clk 0:00:51]}  Nd3 {[%clk 0:00:13]} 50. Be3 {[%clk 0:00:51]}  Ke6 {[%clk 0:00:13]} 51. Ke2 {[%clk 0:00:51]}  Ne5 {[%clk 0:00:14]} 52. Kd2 {[%clk 0:00:50]}  Kf5 {[%clk 0:00:13]} 53. Ba7 {[%clk 0:00:48]}  Ke4 {[%clk 0:00:13]} 54. Ke2 {[%clk 0:00:49]}  h5 {[%clk 0:00:13]} 55. Bb8 {[%clk 0:00:48]}  h4 {[%clk 0:00:12]} 56. Kf2 {[%clk 0:00:49]}  g5 {[%clk 0:00:11]} 57. Kg2 {[%clk 0:00:49]}  g4 {[%clk 0:00:11]} 58. Kh2 {[%clk 0:00:49]}  Nf3+ {[%clk 0:00:10]} 59. Kg2 {[%clk 0:00:50]}  Kd3 {[%clk 0:00:08]} 60. Bd6 {[%clk 0:00:43]}  Kxc3 {[%clk 0:00:09]} 61. Bf8 {[%clk 0:00:43]}  d4 {[%clk 0:00:09]} 62. Bg7 {[%clk 0:00:43]}  Kc2 {[%clk 0:00:08]} 63. Bh6 {[%clk 0:00:44]}  d3 {[%clk 0:00:09]} 64. Kh1 {[%clk 0:00:44]}  d2 {[%clk 0:00:09]} 65. Bxd2 {[%clk 0:00:42]}  Kxd2 {[%clk 0:00:10]} 66. Kg2 {[%clk 0:00:43]}  Ke3 {[%clk 0:00:09]} 67. Kh1 {[%clk 0:00:44]}  Kf4 {[%clk 0:00:10]} 68. Kg2 {[%clk 0:00:45]}  Kg5 {[%clk 0:00:10]} 69. Kh1 {[%clk 0:00:46]}  Kg6 {[%clk 0:00:11]} 70. Kg2 {[%clk 0:00:46]}  Kg7 {[%clk 0:00:12]} 71. Kh1 {[%clk 0:00:47]}  Kg8 {[%clk 0:00:13]} 72. Kg2 {[%clk 0:00:48]}  Kf8 {[%clk 0:00:14]} 73. Kh1 {[%clk 0:00:49]}  Ke8 {[%clk 0:00:15]} 74. Kg2 {[%clk 0:00:50]}  Kd8 {[%clk 0:00:16]} 75. Kh1 {[%clk 0:00:51]}  Kc8 {[%clk 0:00:17]} 76. Kg2 {[%clk 0:00:52]}  Kb8 {[%clk 0:00:18]} 77. Kh1 {[%clk 0:00:53]}  Kc7 {[%clk 0:00:19]} 78. Kg2 {[%clk 0:00:54]}  Kd7 {[%clk 0:00:19]} 79. Kh1 {[%clk 0:00:54]}  Kd6 {[%clk 0:00:20]} 80. Kg2 {[%clk 0:00:55]}  Ke5 {[%clk 0:00:21]} 81. Kh1 {[%clk 0:00:56]}  Kf4 {[%clk 0:00:22]} 82. Kg2 {[%clk 0:00:57]}  h3+ {[%clk 0:00:22]} 83. Kh1 {[%clk 0:00:58]}  Nh4 {[%clk 0:00:23]} 84. Kg1 {[%clk 0:00:58]}  g3 {[%clk 0:00:23]} 85. Kh1 {[%clk 0:00:59]}  g2+ {[%clk 0:00:23]} 86. Kg1 {[%clk 0:01:00]}  Nf3+ {[%clk 0:00:23]} 87. Kf2 {[%clk 0:01:00]}  g1=Q+ {[%clk 0:00:24]} 88. Ke2 {[%clk 0:01:00]}  Qe3+ {[%clk 0:00:22]} 89. Kd1 {[%clk 0:01:00]}  Qd2# {[%clk 0:00:23]} 0-1


[Site "https://www.chess.com"]

[Event "Titled Tuesday Blitz March 07 Late 2023"]
[White "Carrasco Miranda, Andres"]
[Black "Kohler, Aran"]
[WhiteFideId "3405990"]
[BlackFideId "1002856"]
[WhiteElo "2183"]
[BlackElo "2228"]
[Result "0-1"]
[Round "08"]
[TimeControl "180+2"]
[Date "2023.03.07"]
[WhiteClock "0:00:11"]
[BlackClock "0:00:15"]

1. d4 {[%clk 0:03:00]}  Nf6 {[%clk 0:02:55]} 2. c4 {[%clk 0:02:59]}  c6 {[%clk 0:02:54]} 3. Nf3 {[%clk 0:02:56]}  d5 {[%clk 0:02:54]} 4. e3 {[%clk 0:02:56]}  e6 {[%clk 0:02:54]} 5. b3 {[%clk 0:02:55]}  Nbd7 {[%clk 0:02:54]} 6. Bd3 {[%clk 0:02:53]}  Bb4+ {[%clk 0:02:54]} 7. Nbd2 {[%clk 0:02:52]}  O-O {[%clk 0:02:39]} 8. O-O {[%clk 0:02:51]}  e5 {[%clk 0:02:33]} 9. dxe5 {[%clk 0:02:49]}  Bc3 {[%clk 0:02:31]} 10. exf6 {[%clk 0:02:46]}  Bxa1 {[%clk 0:02:30]} 11. fxg7 {[%clk 0:02:46]}  Bxg7 {[%clk 0:02:28]} 12. cxd5 {[%clk 0:02:47]}  Nb6 {[%clk 0:02:26]} 13. d6 {[%clk 0:02:42]}  Qxd6 {[%clk 0:02:24]} 14. Ne4 {[%clk 0:02:39]}  Qh6 {[%clk 0:01:34]} 15. Ba3 {[%clk 0:02:31]}  Re8 {[%clk 0:01:21]} 16. Qc2 {[%clk 0:02:23]}  Bf5 {[%clk 0:01:16]} 17. Nf6+ {[%clk 0:02:10]}  Bxf6 {[%clk 0:01:13]} 18. Bxf5 {[%clk 0:02:11]}  Nd5 {[%clk 0:01:11]} 19. Nd2 {[%clk 0:01:42]}  Kh8 {[%clk 0:01:04]} 20. Ne4 {[%clk 0:01:40]}  Be5 {[%clk 0:01:04]} 21. Ng3 {[%clk 0:01:39]}  Rad8 {[%clk 0:01:02]} 22. Qe2 {[%clk 0:01:18]}  f6 {[%clk 0:00:57]} 23. Bc2 {[%clk 0:01:15]}  Rd7 {[%clk 0:00:49]} 24. Qf3 {[%clk 0:01:09]}  Rg7 {[%clk 0:00:46]} 25. Rd1 {[%clk 0:00:59]}  Reg8 {[%clk 0:00:40]} 26. Bc5 {[%clk 0:00:51]}  b6 {[%clk 0:00:38]} 27. Bd4 {[%clk 0:00:51]}  Bxd4 {[%clk 0:00:38]} 28. Rxd4 {[%clk 0:00:51]}  Nc3 {[%clk 0:00:33]} 29. Rf4 {[%clk 0:00:45]}  Rf7 {[%clk 0:00:30]} 30. Qxc6 {[%clk 0:00:39]}  Rxg3 {[%clk 0:00:27]} 31. Qxc3 {[%clk 0:00:20]}  Qxf4 {[%clk 0:00:22]} 32. Qc8+ {[%clk 0:00:21]}  Rg8 {[%clk 0:00:19]} 33. Qxg8+ {[%clk 0:00:19]}  Kxg8 {[%clk 0:00:20]} 34. exf4 {[%clk 0:00:20]}  Kg7 {[%clk 0:00:20]} 35. g4 {[%clk 0:00:20]}  Rd7 {[%clk 0:00:21]} 36. g5 {[%clk 0:00:19]}  Rd2 {[%clk 0:00:21]} 37. Be4 {[%clk 0:00:18]}  fxg5 {[%clk 0:00:21]} 38. fxg5 {[%clk 0:00:18]}  Rxa2 {[%clk 0:00:22]} 39. h4 {[%clk 0:00:18]}  Rb2 {[%clk 0:00:22]} 40. Bd5 {[%clk 0:00:18]}  a5 {[%clk 0:00:21]} 41. h5 {[%clk 0:00:18]}  b5 {[%clk 0:00:21]} 42. Kg2 {[%clk 0:00:18]}  a4 {[%clk 0:00:21]} 43. bxa4 {[%clk 0:00:19]}  bxa4 {[%clk 0:00:20]} 44. Kg3 {[%clk 0:00:17]}  a3 {[%clk 0:00:21]} 45. h6+ {[%clk 0:00:17]}  Kf8 {[%clk 0:00:20]} 46. g6 {[%clk 0:00:13]}  hxg6 {[%clk 0:00:17]} 47. Kg4 {[%clk 0:00:13]}  a2 {[%clk 0:00:17]} 48. Bxa2 {[%clk 0:00:11]}  Rxa2 {[%clk 0:00:16]} 49. Kg5 {[%clk 0:00:12]}  Rxf2 {[%clk 0:00:16]} 50. Kxg6 {[%clk 0:00:12]}  Rg2+ {[%clk 0:00:17]} 51. Kh7 {[%clk 0:00:12]}  Kf7 {[%clk 0:00:14]} 52. Kh8 {[%clk 0:00:13]}  Ra2 {[%clk 0:00:14]} 53. Kh7 {[%clk 0:00:12]}  Ra7 {[%clk 0:00:14]} 54. Kh8 {[%clk 0:00:12]}  Kg6 {[%clk 0:00:14]} 55. h7 {[%clk 0:00:11]}  Ra8# {[%clk 0:00:15]} 0-1


[Site "https://www.chess.com"]

[Event "Titled Tuesday Blitz March 07 Late 2023"]
[White "Kujawski, Adam"]
[Black "Stead, Kerry"]
[WhiteFideId "1100920"]
[BlackFideId "3202577"]
[WhiteElo "2054"]
[BlackElo "1997"]
[Result "1-0"]
[Round "08"]
[TimeControl "180+2"]
[Date "2023.03.07"]
[WhiteClock "0:00:21"]
[BlackClock "0:01:42"]

1. e4 {[%clk 0:02:57]}  c6 {[%clk 0:02:59]} 2. d4 {[%clk 0:02:57]}  d5 {[%clk 0:02:58]} 3. f3 {[%clk 0:02:57]}  dxe4 {[%clk 0:02:56]} 4. fxe4 {[%clk 0:02:57]}  e5 {[%clk 0:02:57]} 5. Nf3 {[%clk 0:02:57]}  exd4 {[%clk 0:02:57]} 6. Bc4 {[%clk 0:02:56]}  Bc5 {[%clk 0:02:46]} 7. Ng5 {[%clk 0:02:40]}  Nh6 {[%clk 0:02:45]} 8. O-O {[%clk 0:02:21]}  O-O {[%clk 0:02:45]} 9. Nxf7 {[%clk 0:02:07]}  Nxf7 {[%clk 0:02:44]} 10. Rxf7 {[%clk 0:02:06]}  Rxf7 {[%clk 0:02:44]} 11. Bxf7+ {[%clk 0:02:05]}  Kxf7 {[%clk 0:02:43]} 12. Qh5+ {[%clk 0:02:05]}  Kg8 {[%clk 0:02:43]} 13. Qxc5 {[%clk 0:02:05]}  Be6 {[%clk 0:02:42]} 14. Bg5 {[%clk 0:01:57]}  Qd7 {[%clk 0:02:36]} 15. Nd2 {[%clk 0:01:56]}  b6 {[%clk 0:02:36]} 16. Qe5 {[%clk 0:01:49]}  c5 {[%clk 0:02:36]} 17. Rf1 {[%clk 0:01:44]}  Nc6 {[%clk 0:02:36]} 18. Qf4 {[%clk 0:01:11]}  Qf7 {[%clk 0:02:31]} 19. Qd6 {[%clk 0:00:58]}  Qd7 {[%clk 0:02:29]} 20. Qf4 {[%clk 0:00:49]}  Qf7 {[%clk 0:02:29]} 21. Qg3 {[%clk 0:00:35]}  Qg6 {[%clk 0:02:12]} 22. Qd6 {[%clk 0:00:33]}  Nb4 {[%clk 0:02:08]} 23. Nf3 {[%clk 0:00:28]}  Re8 {[%clk 0:01:58]} 24. Ne5 {[%clk 0:00:22]}  Qxg5 {[%clk 0:01:49]} 25. Rf8+ {[%clk 0:00:21]}  Rxf8 {[%clk 0:01:46]} 26. Qxe6+ {[%clk 0:00:21]}  Kh8 {[%clk 0:01:46]} 27. Nf7+ {[%clk 0:00:21]}  Kg8 {[%clk 0:01:41]} 28. Nh6+ {[%clk 0:00:21]}  Kh8 {[%clk 0:01:42]} 29. Qg8+ {[%clk 0:00:21]}  Rxg8 {[%clk 0:01:42]} 30. Nf7# {[%clk 0:00:21]} 1-0


[Site "https://www.chess.com"]